[Event "Late-Titled-Tuesday-Blitz-April-30-2024"]
[Site "Chess.com"]
[Date "2024.04.30"]
[Round "7"]
[White "Cambek64"]
[Black "Darkbluelord"]
[Result "1-0"]
[WhiteElo "2521"]
[BlackElo "2204"]
[TimeControl "180+1"]
[EndTime "15:15:15 PDT"]
[Termination "Cambek64 won by resignation"]

1. d4 {[%clk 0:03:00.9]} 1... c5 {[%clk 0:02:59.8]} 2. d5 {[%clk 0:03:00.6]}
2... d6 {[%clk 0:02:59.3]} 3. e4 {[%clk 0:02:58.5]} 3... Nf6 {[%clk 0:02:57.5]}
4. Nc3 {[%clk 0:02:57.2]} 4... g6 {[%clk 0:02:56]} 5. Bb5+ {[%clk 0:02:57.4]}
5... Bd7 {[%clk 0:02:55.5]} 6. a4 {[%clk 0:02:57.2]} 6... Bg7 {[%clk 0:02:54.7]}
7. Nf3 {[%clk 0:02:56.1]} 7... O-O {[%clk 0:02:54.3]} 8. h3 {[%clk 0:02:55.7]}
8... Bxb5 {[%clk 0:02:47.1]} 9. axb5 {[%clk 0:02:55.4]} 9... Nbd7 {[%clk
0:02:47.4]} 10. O-O {[%clk 0:02:54.4]} 10... Nb6 {[%clk 0:02:46.5]} 11. Qd3
{[%clk 0:02:46.1]} 11... e6 {[%clk 0:02:42.1]} 12. Bf4 {[%clk 0:02:38.6]} 12...
exd5 {[%clk 0:02:39.8]} 13. exd5 {[%clk 0:02:38.1]} 13... Nh5 {[%clk 0:02:34.2]}
14. Bg5 {[%clk 0:02:38.2]} 14... f6 {[%clk 0:02:28.1]} 15. Bd2 {[%clk
0:02:29.7]} 15... f5 {[%clk 0:02:26.9]} 16. b3 {[%clk 0:02:14]} 16... Qc7 {[%clk
0:02:18.2]} 17. Ra2 {[%clk 0:02:11.5]} 17... c4 {[%clk 0:02:14.1]} 18. bxc4
{[%clk 0:02:08.3]} 18... Qxc4 {[%clk 0:02:10.2]} 19. Rd1 {[%clk 0:01:51.7]}
19... Rfc8 {[%clk 0:01:57.3]} 20. Qxc4 {[%clk 0:01:43.4]} 20... Nxc4 {[%clk
0:01:54]} 21. Be1 {[%clk 0:01:40.2]} 21... a6 {[%clk 0:01:53.9]} 22. bxa6 {[%clk
0:01:39.2]} 22... bxa6 {[%clk 0:01:48.4]} 23. Ne2 {[%clk 0:01:31.3]} 23... a5
{[%clk 0:01:37.8]} 24. Ned4 {[%clk 0:01:31.7]} 24... Rc5 {[%clk 0:01:24.4]} 25.
Ne6 {[%clk 0:01:30.2]} 25... Rb5 {[%clk 0:01:17.6]} 26. Nxg7 {[%clk 0:01:28.8]}
26... Kxg7 {[%clk 0:01:16.3]} 27. Nd4 {[%clk 0:01:28.8]} 27... Rab8 {[%clk
0:01:10.1]} 28. Nxb5 {[%clk 0:01:27.5]} 28... Rxb5 {[%clk 0:01:09]} 29. Bc3+
{[%clk 0:01:27.1]} 29... Kf7 {[%clk 0:01:08.4]} 30. g3 {[%clk 0:01:27.2]} 30...
Nf6 {[%clk 0:01:07.3]} 31. Bxf6 {[%clk 0:01:25.2]} 31... Kxf6 {[%clk 0:01:07.6]}
32. Rd4 {[%clk 0:01:24]} 32... Ke5 {[%clk 0:01:06.4]} 33. Rxc4 {[%clk
0:01:23.2]} 1-0

[Event "Late-Titled-Tuesday-Blitz-April-30-2024"]
[Site "Chess.com"]
[Date "2024.04.30"]
[Round "7"]
[White "LeninGuerra"]
[Black "Akhayan"]
[Result "1-0"]
[WhiteElo "2659"]
[BlackElo "2478"]
[TimeControl "180+1"]
[EndTime "15:15:20 PDT"]
[Termination "LeninGuerra won by resignation"]

1. e4 {[%clk 0:02:58.1]} 1... e5 {[%clk 0:02:59.6]} 2. Nf3 {[%clk 0:02:57.9]}
2... Nc6 {[%clk 0:02:59.8]} 3. Bb5 {[%clk 0:02:58.3]} 3... a6 {[%clk 0:02:59.6]}
4. Ba4 {[%clk 0:02:58.8]} 4... Nf6 {[%clk 0:02:59.9]} 5. Qe2 {[%clk 0:02:59.2]}
5... b5 {[%clk 0:02:59.1]} 6. Bb3 {[%clk 0:02:59]} 6... Be7 {[%clk 0:02:59.7]}
7. O-O {[%clk 0:02:59.6]} 7... O-O {[%clk 0:03:00.3]} 8. Rd1 {[%clk 0:03:00.1]}
8... Bb7 {[%clk 0:03:00.6]} 9. c3 {[%clk 0:03:00.6]} 9... d5 {[%clk 0:03:00.3]}
10. d4 {[%clk 0:02:46.2]} 10... exd4 {[%clk 0:02:43.8]} 11. e5 {[%clk
0:02:45.8]} 11... Ne4 {[%clk 0:02:44.3]} 12. cxd4 {[%clk 0:02:45.7]} 12... Na5
{[%clk 0:02:38.3]} 13. Bc2 {[%clk 0:02:44.9]} 13... c5 {[%clk 0:02:37.2]} 14.
Nc3 {[%clk 0:02:43.7]} 14... cxd4 {[%clk 0:02:21.1]} 15. Nxe4 {[%clk 0:02:37.2]}
15... dxe4 {[%clk 0:02:20.5]} 16. Bxe4 {[%clk 0:02:37.8]} 16... Qb6 {[%clk
0:01:45.6]} 17. Bxb7 {[%clk 0:02:30.5]} 17... Nxb7 {[%clk 0:01:45]} 18. Nxd4
{[%clk 0:02:22.6]} 18... Rad8 {[%clk 0:01:43]} 19. Be3 {[%clk 0:02:22.2]} 19...
Bc5 {[%clk 0:01:42.8]} 20. Nf5 {[%clk 0:02:18.7]} 20... g6 {[%clk 0:01:32.2]}
21. Nh6+ {[%clk 0:02:16.7]} 21... Kg7 {[%clk 0:01:32.1]} 22. Ng4 {[%clk
0:02:16.8]} 22... Bxe3 {[%clk 0:01:30.2]} 23. Qxe3 {[%clk 0:02:12.8]} 23... Qxe3
{[%clk 0:01:29.1]} 24. Nxe3 {[%clk 0:02:13.7]} 24... Rfe8 {[%clk 0:01:15.3]} 25.
f4 {[%clk 0:02:12.2]} 25... Nc5 {[%clk 0:01:14.7]} 26. Nd5 {[%clk 0:01:53.9]}
26... Ne6 {[%clk 0:00:58.6]} 27. g3 {[%clk 0:01:53.6]} 27... Rd7 {[%clk
0:00:57.4]} 28. Nf6 {[%clk 0:01:51.8]} 28... Rxd1+ {[%clk 0:00:56]} 29. Rxd1
{[%clk 0:01:52.7]} 29... Rd8 {[%clk 0:00:55]} 30. Rxd8 {[%clk 0:01:47.2]} 30...
Nxd8 {[%clk 0:00:55.5]} 31. Ne8+ {[%clk 0:01:46.5]} 31... Kf8 {[%clk 0:00:52.9]}
32. Nc7 {[%clk 0:01:47.1]} 32... Ke7 {[%clk 0:00:49.9]} 33. Nxa6 {[%clk
0:01:46.5]} 33... Ke6 {[%clk 0:00:50.5]} 34. Nc7+ {[%clk 0:01:46]} 34... Kf5
{[%clk 0:00:47.9]} 35. Nxb5 {[%clk 0:01:46.5]} 35... Ke4 {[%clk 0:00:48.5]} 36.
Kf2 {[%clk 0:01:44.7]} 36... Kd3 {[%clk 0:00:47.9]} 37. Nd6 {[%clk 0:01:44.7]}
1-0

[Event "Late-Titled-Tuesday-Blitz-April-30-2024"]
[Site "Chess.com"]
[Date "2024.04.30"]
[Round "7"]
[White "Bykov_Egor"]
[Black "Pig-filth"]
[Result "1/2-1/2"]
[WhiteElo "2605"]
[BlackElo "2317"]
[TimeControl "180+1"]
[EndTime "15:15:33 PDT"]
[Termination "Game drawn by repetition"]

1. Nf3 {[%clk 0:03:00.9]} 1... Nf6 {[%clk 0:02:57.8]} 2. b3 {[%clk 0:03:01.1]}
2... g6 {[%clk 0:02:56.3]} 3. Bb2 {[%clk 0:03:01]} 3... Bg7 {[%clk 0:02:57.2]}
4. d4 {[%clk 0:03:01.7]} 4... d5 {[%clk 0:02:56.8]} 5. e3 {[%clk 0:03:01.6]}
5... O-O {[%clk 0:02:57.2]} 6. c4 {[%clk 0:03:01.9]} 6... c5 {[%clk 0:02:55.1]}
7. dxc5 {[%clk 0:02:56.9]} 7... Qa5+ {[%clk 0:02:54.2]} 8. Bc3 {[%clk
0:02:56.1]} 8... Qxc5 {[%clk 0:02:54.3]} 9. b4 {[%clk 0:02:24.4]} 9... Qd6
{[%clk 0:02:39.5]} 10. c5 {[%clk 0:02:21.6]} 10... Qd8 {[%clk 0:02:35.6]} 11.
Be2 {[%clk 0:02:16.9]} 11... Nc6 {[%clk 0:02:28.3]} 12. b5 {[%clk 0:02:07.2]}
12... Na5 {[%clk 0:02:26.8]} 13. Nbd2 {[%clk 0:01:56]} 13... Bf5 {[%clk
0:02:04.1]} 14. Qa4 {[%clk 0:01:49.2]} 14... b6 {[%clk 0:02:03.6]} 15. Nd4
{[%clk 0:01:33.9]} 15... Ne4 {[%clk 0:01:58.5]} 16. Nxe4 {[%clk 0:01:31.5]}
16... Bxe4 {[%clk 0:01:56.9]} 17. Bxa5 {[%clk 0:01:28.2]} 17... bxa5 {[%clk
0:01:56.6]} 18. O-O {[%clk 0:01:27.2]} 18... e5 {[%clk 0:01:55.6]} 19. Nf3
{[%clk 0:01:07.8]} 19... Bxf3 {[%clk 0:01:53.6]} 20. gxf3 {[%clk 0:01:03.6]}
20... e4 {[%clk 0:01:53.7]} 21. Rad1 {[%clk 0:00:50.4]} 21... Qg5+ {[%clk
0:01:35.1]} 22. Kh1 {[%clk 0:00:50.3]} 22... Qh5 {[%clk 0:01:35.3]} 23. Kg2
{[%clk 0:00:31.5]} 23... Qg5+ {[%clk 0:01:25]} 24. Kh1 {[%clk 0:00:31.5]} 24...
Qh5 {[%clk 0:01:25.5]} 25. Kg2 {[%clk 0:00:31.4]} 25... Qg5+ {[%clk 0:01:25.9]}
26. Kh1 {[%clk 0:00:31.5]} 1/2-1/2

[Event "Late-Titled-Tuesday-Blitz-April-30-2024"]
[Site "Chess.com"]
[Date "2024.04.30"]
[Round "7"]
[White "DanielNaroditsky"]
[Black "platy3"]
[Result "1-0"]
[WhiteElo "3042"]
[BlackElo "2877"]
[TimeControl "180+1"]
[EndTime "15:15:38 PDT"]
[Termination "DanielNaroditsky won by resignation"]

1. e4 {[%clk 0:03:00]} 1... c5 {[%clk 0:02:56.1]} 2. c3 {[%clk 0:02:59.9]} 2...
d5 {[%clk 0:02:53.6]} 3. exd5 {[%clk 0:03:00.8]} 3... Qxd5 {[%clk 0:02:54.3]} 4.
d4 {[%clk 0:03:01.4]} 4... Nf6 {[%clk 0:02:55]} 5. Nf3 {[%clk 0:03:01.1]} 5...
Nc6 {[%clk 0:02:55.7]} 6. Be3 {[%clk 0:03:00]} 6... cxd4 {[%clk 0:02:48.1]} 7.
cxd4 {[%clk 0:03:00.9]} 7... Bg4 {[%clk 0:02:46.7]} 8. Nc3 {[%clk 0:02:59.1]}
8... Qa5 {[%clk 0:02:45.7]} 9. Bb5 {[%clk 0:02:39.6]} 9... e6 {[%clk 0:02:43.8]}
10. h3 {[%clk 0:02:35.1]} 10... Bh5 {[%clk 0:02:42.2]} 11. g4 {[%clk 0:02:26.8]}
11... Bg6 {[%clk 0:02:42.2]} 12. Ne5 {[%clk 0:02:25.6]} 12... Bb4 {[%clk
0:02:39.6]} 13. O-O {[%clk 0:02:16]} 13... Bxc3 {[%clk 0:02:33.1]} 14. Bxc6+
{[%clk 0:02:16.1]} 14... bxc6 {[%clk 0:02:33.7]} 15. bxc3 {[%clk 0:02:17]} 15...
O-O {[%clk 0:02:34]} 16. c4 {[%clk 0:02:07.7]} 16... c5 {[%clk 0:01:56]} 17.
dxc5 {[%clk 0:02:04.4]} 17... Rfd8 {[%clk 0:01:55.8]} 18. Nc6 {[%clk 0:01:59.9]}
18... Rxd1 {[%clk 0:01:55.1]} 19. Nxa5 {[%clk 0:02:00.1]} 19... Rd3 {[%clk
0:01:52.8]} 20. c6 {[%clk 0:01:54.2]} 20... Rc8 {[%clk 0:01:40]} 21. Rad1 {[%clk
0:01:49.5]} 21... h5 {[%clk 0:01:27.1]} 22. g5 {[%clk 0:01:37.6]} 22... Ne8
{[%clk 0:01:27.3]} 23. Rxd3 {[%clk 0:01:24]} 23... Bxd3 {[%clk 0:01:28.2]} 24.
Rd1 {[%clk 0:01:24]} 24... Be4 {[%clk 0:01:28]} 25. Bxa7 {[%clk 0:01:14.9]}
25... f6 {[%clk 0:01:25.5]} 26. gxf6 {[%clk 0:01:13.1]} 26... gxf6 {[%clk
0:01:25.4]} 27. Bb6 {[%clk 0:01:02.2]} 27... Bxc6 {[%clk 0:01:25.5]} 28. Nxc6
{[%clk 0:01:01.4]} 28... Rxc6 {[%clk 0:01:25.5]} 29. c5 {[%clk 0:01:02.3]} 29...
Nc7 {[%clk 0:00:58.4]} 30. Rd6 {[%clk 0:00:59.3]} 1-0

[Event "Late-Titled-Tuesday-Blitz-April-30-2024"]
[Site "Chess.com"]
[Date "2024.04.30"]
[Round "7"]
[White "FabianoCaruana"]
[Black "Jakhongir-Vakhidov"]
[Result "1-0"]
[WhiteElo "3086"]
[BlackElo "2748"]
[TimeControl "180+1"]
[EndTime "15:15:44 PDT"]
[Termination "FabianoCaruana won by resignation"]

1. c4 {[%clk 0:03:00.9]} 1... Nf6 {[%clk 0:02:56.5]} 2. Nc3 {[%clk 0:03:01.2]}
2... d6 {[%clk 0:02:57]} 3. d4 {[%clk 0:03:00.8]} 3... e5 {[%clk 0:02:57.3]} 4.
Nf3 {[%clk 0:02:59.8]} 4... e4 {[%clk 0:02:57.8]} 5. Ng5 {[%clk 0:02:54.6]} 5...
Qe7 {[%clk 0:02:58]} 6. Qc2 {[%clk 0:02:54.6]} 6... Bf5 {[%clk 0:02:57.5]} 7. f3
{[%clk 0:02:51.3]} 7... Nc6 {[%clk 0:02:57.7]} 8. d5 {[%clk 0:02:36.2]} 8... Nb8
{[%clk 0:02:52.2]} 9. Ngxe4 {[%clk 0:02:24.2]} 9... Nxe4 {[%clk 0:02:49.5]} 10.
fxe4 {[%clk 0:02:22.2]} 10... Bg6 {[%clk 0:02:48.9]} 11. Qb3 {[%clk 0:02:06.8]}
11... b6 {[%clk 0:02:36.8]} 12. g3 {[%clk 0:02:06.7]} 12... Nd7 {[%clk
0:02:36.7]} 13. Bh3 {[%clk 0:02:05.5]} 13... a6 {[%clk 0:01:56.9]} 14. Be3
{[%clk 0:01:55.9]} 14... Bxe4 {[%clk 0:01:49.6]} 15. Nxe4 {[%clk 0:01:43]} 15...
Qxe4 {[%clk 0:01:50.5]} 16. O-O {[%clk 0:01:43.1]} 16... Ne5 {[%clk 0:01:40.8]}
17. Rac1 {[%clk 0:01:23.6]} 17... Be7 {[%clk 0:01:19.8]} 18. Bf5 {[%clk
0:01:20.7]} 18... Nf3+ {[%clk 0:01:09.7]} 19. Rxf3 {[%clk 0:01:19.3]} 19... Qe5
{[%clk 0:01:10.3]} 20. Qa4+ {[%clk 0:01:15.4]} 20... Kf8 {[%clk 0:01:10.2]} 21.
Qc2 {[%clk 0:01:12.9]} 21... g6 {[%clk 0:01:09.5]} 22. Be6 {[%clk 0:01:06]}
22... f5 {[%clk 0:01:08.9]} 23. Bf4 {[%clk 0:01:01.5]} 23... Qg7 {[%clk
0:01:06]} 24. e4 {[%clk 0:01:01.3]} 24... Bf6 {[%clk 0:01:05.4]} 25. exf5 {[%clk
0:01:00.5]} 25... g5 {[%clk 0:01:05.6]} 26. Be3 {[%clk 0:00:59.7]} 26... g4
{[%clk 0:01:03.1]} 27. Rf4 {[%clk 0:00:56.4]} 27... Bg5 {[%clk 0:00:58.6]} 28.
Rcf1 {[%clk 0:00:54]} 28... Qe5 {[%clk 0:00:53.9]} 29. Bd4 {[%clk 0:00:52.3]}
1-0

[Event "Late-Titled-Tuesday-Blitz-April-30-2024"]
[Site "Chess.com"]
[Date "2024.04.30"]
[Round "7"]
[White "lluiss"]
[Black "Balla_Tamas"]
[Result "1-0"]
[WhiteElo "2241"]
[BlackElo "2474"]
[TimeControl "180+1"]
[EndTime "15:15:44 PDT"]
[Termination "lluiss won by resignation"]

1. Nf3 {[%clk 0:03:00.9]} 1... c5 {[%clk 0:03:00.1]} 2. c4 {[%clk 0:03:00.3]}
2... Nc6 {[%clk 0:03:00.4]} 3. Nc3 {[%clk 0:03:00.6]} 3... g6 {[%clk 0:03:00.5]}
4. e3 {[%clk 0:03:00.9]} 4... Nf6 {[%clk 0:03:00.4]} 5. d4 {[%clk 0:02:52.8]}
5... cxd4 {[%clk 0:03:00.6]} 6. exd4 {[%clk 0:02:52.2]} 6... d5 {[%clk
0:03:01.2]} 7. cxd5 {[%clk 0:02:52.4]} 7... Nxd5 {[%clk 0:03:02.1]} 8. Qb3
{[%clk 0:02:52.6]} 8... Nxc3 {[%clk 0:02:59.9]} 9. Bc4 {[%clk 0:02:52.3]} 9...
e6 {[%clk 0:02:57.4]} 10. bxc3 {[%clk 0:02:30.1]} 10... Bd7 {[%clk 0:02:57.1]}
11. Bg5 {[%clk 0:02:14.1]} 11... f6 {[%clk 0:02:44.3]} 12. Bxe6 {[%clk 0:02:05]}
12... fxg5 {[%clk 0:02:38.8]} 13. Bf7+ {[%clk 0:02:04.9]} 13... Ke7 {[%clk
0:02:37.7]} 14. O-O {[%clk 0:01:42.4]} 14... Bg7 {[%clk 0:02:37.3]} 15. Nxg5
{[%clk 0:01:39.3]} 15... Kf8 {[%clk 0:02:33.5]} 16. f4 {[%clk 0:01:29.9]} 16...
h6 {[%clk 0:02:30]} 17. Be6 {[%clk 0:01:17.5]} 17... Be8 {[%clk 0:01:55.1]} 18.
Rae1 {[%clk 0:01:02]} 18... Ne7 {[%clk 0:01:15.4]} 19. Bc4 {[%clk 0:00:39.4]}
19... hxg5 {[%clk 0:01:04.3]} 20. fxg5+ {[%clk 0:00:37.6]} 20... Nf5 {[%clk
0:01:03.9]} 21. Qb4+ {[%clk 0:00:35.7]} 1-0

[Event "Late-Titled-Tuesday-Blitz-April-30-2024"]
[Site "Chess.com"]
[Date "2024.04.30"]
[Round "7"]
[White "A4RookA3"]
[Black "AlainBruxelles"]
[Result "1-0"]
[WhiteElo "2373"]
[BlackElo "2232"]
[TimeControl "180+1"]
[EndTime "15:15:45 PDT"]
[Termination "A4RookA3 won by resignation"]

1. d4 {[%clk 0:02:57.5]} 1... d5 {[%clk 0:02:58.6]} 2. Nc3 {[%clk 0:02:57.7]}
2... e6 {[%clk 0:02:55.5]} 3. e4 {[%clk 0:02:51.3]} 3... Bb4 {[%clk 0:02:56]} 4.
e5 {[%clk 0:02:47]} 4... c5 {[%clk 0:02:54.5]} 5. a3 {[%clk 0:02:47.2]} 5...
Bxc3+ {[%clk 0:02:54.5]} 6. bxc3 {[%clk 0:02:48.1]} 6... Qa5 {[%clk 0:02:51.7]}
7. Bd2 {[%clk 0:02:45.2]} 7... Qa4 {[%clk 0:02:51.6]} 8. Qg4 {[%clk 0:02:41.2]}
8... Kf8 {[%clk 0:02:51.3]} 9. c4 {[%clk 0:02:21.6]} 9... Nc6 {[%clk 0:02:34.5]}
10. dxc5 {[%clk 0:02:16.2]} 10... d4 {[%clk 0:02:13.3]} 11. Nf3 {[%clk
0:02:12.7]} 11... Nge7 {[%clk 0:02:06.4]} 12. Bd3 {[%clk 0:02:06.3]} 12... Ng6
{[%clk 0:02:01.9]} 13. Qe4 {[%clk 0:02:01.6]} 13... Bd7 {[%clk 0:01:48]} 14. h4
{[%clk 0:01:53.9]} 14... Rd8 {[%clk 0:01:45.2]} 15. h5 {[%clk 0:01:36.7]} 15...
Nge7 {[%clk 0:01:44]} 16. h6 {[%clk 0:01:36.6]} 16... g6 {[%clk 0:01:43.5]} 17.
Bg5 {[%clk 0:01:32.2]} 17... Be8 {[%clk 0:01:32.3]} 18. Qf4 {[%clk 0:01:18.4]}
18... Qa5+ {[%clk 0:01:19.4]} 19. Ke2 {[%clk 0:01:08.7]} 19... Qxc5 {[%clk
0:01:19.1]} 20. Bf6 {[%clk 0:00:58.2]} 20... Rg8 {[%clk 0:01:07.4]} 21. Ng5
{[%clk 0:00:57.2]} 21... Bd7 {[%clk 0:00:51.5]} 22. Bg7+ {[%clk 0:00:46.3]} 1-0

[Event "Late-Titled-Tuesday-Blitz-April-30-2024"]
[Site "Chess.com"]
[Date "2024.04.30"]
[Round "7"]
[White "super_emi_26"]
[Black "Semyon_Khanin"]
[Result "1-0"]
[WhiteElo "2780"]
[BlackElo "2873"]
[TimeControl "180+1"]
[EndTime "15:15:46 PDT"]
[Termination "super_emi_26 won by resignation"]

1. b3 {[%clk 0:03:00.9]} 1... b6 {[%clk 0:02:59.7]} 2. Bb2 {[%clk 0:03:01.8]}
2... Bb7 {[%clk 0:03:00.2]} 3. e3 {[%clk 0:03:02.2]} 3... Nf6 {[%clk 0:02:58.9]}
4. Nf3 {[%clk 0:03:02.8]} 4... g6 {[%clk 0:02:59.1]} 5. Be2 {[%clk 0:03:02.2]}
5... Bg7 {[%clk 0:02:59.3]} 6. d4 {[%clk 0:03:02.9]} 6... O-O {[%clk 0:02:59.4]}
7. O-O {[%clk 0:03:03.6]} 7... c5 {[%clk 0:02:59.8]} 8. c4 {[%clk 0:03:04]} 8...
cxd4 {[%clk 0:02:59.8]} 9. Nxd4 {[%clk 0:03:04.9]} 9... Nc6 {[%clk 0:02:58]} 10.
Nc3 {[%clk 0:02:59.4]} 10... Nxd4 {[%clk 0:02:57.5]} 11. Qxd4 {[%clk 0:03:00.3]}
11... Ne4 {[%clk 0:02:41]} 12. Qd3 {[%clk 0:02:58.7]} 12... d5 {[%clk
0:02:40.9]} 13. cxd5 {[%clk 0:02:49.7]} 13... Nxc3 {[%clk 0:02:29.1]} 14. Bxc3
{[%clk 0:02:50.6]} 14... Qxd5 {[%clk 0:02:23.9]} 15. Qxd5 {[%clk 0:02:48.6]}
15... Bxd5 {[%clk 0:02:24.8]} 16. Bxg7 {[%clk 0:02:48.9]} 16... Kxg7 {[%clk
0:02:25.7]} 17. Rac1 {[%clk 0:02:48.4]} 17... Rac8 {[%clk 0:02:25.4]} 18. Rfd1
{[%clk 0:02:45.5]} 18... e6 {[%clk 0:02:23.9]} 19. f3 {[%clk 0:02:45.2]} 19...
Bb7 {[%clk 0:02:16.5]} 20. e4 {[%clk 0:02:43.2]} 20... Kf6 {[%clk 0:02:15.2]}
21. Kf2 {[%clk 0:02:43.1]} 21... Ke7 {[%clk 0:02:15.2]} 22. Ke3 {[%clk
0:02:40.9]} 22... e5 {[%clk 0:02:14.4]} 23. g3 {[%clk 0:02:31.3]} 23... f5
{[%clk 0:02:08.4]} 24. exf5 {[%clk 0:02:31.2]} 24... gxf5 {[%clk 0:02:05.5]} 25.
f4 {[%clk 0:02:31.1]} 25... e4 {[%clk 0:01:44.3]} 26. g4 {[%clk 0:02:31.1]}
26... fxg4 {[%clk 0:01:11.4]} 27. Bxg4 {[%clk 0:02:32]} 27... Rxc1 {[%clk
0:01:11.3]} 28. Rxc1 {[%clk 0:02:31.9]} 28... Kd6 {[%clk 0:01:12]} 29. b4 {[%clk
0:02:15.8]} 29... Bd5 {[%clk 0:01:10.6]} 30. a3 {[%clk 0:02:09]} 30... h5 {[%clk
0:01:04.8]} 31. Rc8 {[%clk 0:01:56.6]} 31... Rf7 {[%clk 0:00:47.9]} 32. Bxh5
{[%clk 0:01:53.6]} 32... Rh7 {[%clk 0:00:47.4]} 33. Rd8+ {[%clk 0:01:53.8]}
33... Kc6 {[%clk 0:00:27.1]} 34. Be8+ {[%clk 0:01:52.4]} 34... Kc7 {[%clk
0:00:25.8]} 35. Rxd5 {[%clk 0:01:52.4]} 35... Rxh2 {[%clk 0:00:25.1]} 36. a4
{[%clk 0:01:47.2]} 36... Rh3+ {[%clk 0:00:23.4]} 37. Kxe4 {[%clk 0:01:46.9]}
37... Rb3 {[%clk 0:00:23.5]} 38. b5 {[%clk 0:01:45.6]} 1-0

[Event "Late-Titled-Tuesday-Blitz-April-30-2024"]
[Site "Chess.com"]
[Date "2024.04.30"]
[Round "7"]
[White "H3nriqueTV"]
[Black "shirovin"]
[Result "1-0"]
[WhiteElo "2424"]
[BlackElo "2080"]
[TimeControl "180+1"]
[EndTime "15:15:50 PDT"]
[Termination "H3nriqueTV won on time"]

1. e4 {[%clk 0:02:57.2]} 1... Nf6 {[%clk 0:02:58.7]} 2. e5 {[%clk 0:02:55.6]}
2... Nd5 {[%clk 0:02:59.2]} 3. d4 {[%clk 0:02:56.4]} 3... d6 {[%clk 0:02:59]} 4.
Nf3 {[%clk 0:02:57.1]} 4... c6 {[%clk 0:02:57.6]} 5. Bc4 {[%clk 0:02:57.1]} 5...
dxe5 {[%clk 0:02:57.4]} 6. dxe5 {[%clk 0:02:55.8]} 6... Bf5 {[%clk 0:02:51.2]}
7. Nc3 {[%clk 0:02:55.1]} 7... e6 {[%clk 0:02:49.5]} 8. Nxd5 {[%clk 0:02:51.7]}
8... exd5 {[%clk 0:02:47.8]} 9. Bd3 {[%clk 0:02:50.1]} 9... Bg4 {[%clk
0:02:39.6]} 10. O-O {[%clk 0:02:47.6]} 10... Be7 {[%clk 0:02:38.5]} 11. h3
{[%clk 0:02:48.1]} 11... Bh5 {[%clk 0:02:37.5]} 12. g4 {[%clk 0:02:28.3]} 12...
Bg6 {[%clk 0:02:36.5]} 13. e6 {[%clk 0:02:28.7]} 13... O-O {[%clk 0:02:18.3]}
14. Ne5 {[%clk 0:02:10.7]} 14... Bxd3 {[%clk 0:01:55]} 15. exf7+ {[%clk
0:02:07.9]} 15... Kh8 {[%clk 0:01:54.3]} 16. Qxd3 {[%clk 0:02:03.6]} 16... Bf6
{[%clk 0:01:53.6]} 17. Ng6+ {[%clk 0:01:54.5]} 17... hxg6 {[%clk 0:01:39.1]} 18.
Qxg6 {[%clk 0:01:55.4]} 18... Rxf7 {[%clk 0:00:51.9]} 19. Qxf7 {[%clk
0:01:56.3]} 19... Nd7 {[%clk 0:00:50.4]} 20. Re1 {[%clk 0:01:53.8]} 20... Ne5
{[%clk 0:00:46.2]} 21. Rxe5 {[%clk 0:01:49.7]} 21... Bxe5 {[%clk 0:00:45.7]} 22.
Qh5+ {[%clk 0:01:49.8]} 22... Kg8 {[%clk 0:00:45.5]} 23. Qxe5 {[%clk 0:01:50.5]}
23... Qb6 {[%clk 0:00:43.9]} 24. Be3 {[%clk 0:01:45.7]} 24... Qd8 {[%clk
0:00:26.1]} 25. Bd4 {[%clk 0:01:43.3]} 25... Qf8 {[%clk 0:00:24.3]} 26. Re1
{[%clk 0:01:42.5]} 26... Rd8 {[%clk 0:00:13.4]} 27. Re3 {[%clk 0:01:42]} 27...
c5 {[%clk 0:00:12.5]} 28. Rf3 {[%clk 0:01:36.6]} 1-0

[Event "Late-Titled-Tuesday-Blitz-April-30-2024"]
[Site "Chess.com"]
[Date "2024.04.30"]
[Round "7"]
[White "nochewycandy"]
[Black "kleinebeer98"]
[Result "0-1"]
[WhiteElo "2809"]
[BlackElo "2924"]
[TimeControl "180+1"]
[EndTime "15:15:53 PDT"]
[Termination "kleinebeer98 won by resignation"]

1. Nf3 {[%clk 0:03:00.1]} 1... g6 {[%clk 0:02:55.4]} 2. g3 {[%clk 0:02:54.7]}
2... Bg7 {[%clk 0:02:56.3]} 3. Bg2 {[%clk 0:02:54.5]} 3... e6 {[%clk 0:02:57.2]}
4. O-O {[%clk 0:02:53.4]} 4... Ne7 {[%clk 0:02:58.1]} 5. d4 {[%clk 0:02:48.5]}
5... O-O {[%clk 0:02:58.1]} 6. c4 {[%clk 0:02:48.6]} 6... d6 {[%clk 0:02:58.5]}
7. Nc3 {[%clk 0:02:48.5]} 7... Nd7 {[%clk 0:02:59]} 8. e4 {[%clk 0:02:38.5]}
8... b6 {[%clk 0:02:55.9]} 9. a4 {[%clk 0:02:31.6]} 9... Bb7 {[%clk 0:02:53]}
10. a5 {[%clk 0:02:30.2]} 10... bxa5 {[%clk 0:02:53]} 11. Be3 {[%clk 0:02:26.5]}
11... c5 {[%clk 0:02:48]} 12. d5 {[%clk 0:02:24.1]} 12... Nb6 {[%clk 0:02:45.6]}
13. Qd3 {[%clk 0:02:19.1]} 13... Ba6 {[%clk 0:02:40.6]} 14. Nd2 {[%clk
0:02:14.7]} 14... exd5 {[%clk 0:02:39.1]} 15. exd5 {[%clk 0:02:12.4]} 15... Nf5
{[%clk 0:02:34.3]} 16. Rxa5 {[%clk 0:02:04.3]} 16... Bxc4 {[%clk 0:02:34.9]} 17.
Nxc4 {[%clk 0:01:58.9]} 17... Nxc4 {[%clk 0:02:35.8]} 18. Ra2 {[%clk 0:01:54.6]}
18... Ncxe3 {[%clk 0:02:33.6]} 19. fxe3 {[%clk 0:01:55.5]} 19... Nxe3 {[%clk
0:02:34.4]} 20. Rf3 {[%clk 0:01:51.5]} 20... Nxg2 {[%clk 0:02:32.9]} 21. Kxg2
{[%clk 0:01:51.8]} 21... Rb8 {[%clk 0:02:33.8]} 22. Rf2 {[%clk 0:01:43.3]} 22...
Qb6 {[%clk 0:02:24.2]} 23. Ra6 {[%clk 0:01:32.2]} 23... Qc7 {[%clk 0:02:19.1]}
24. Nb5 {[%clk 0:01:25.6]} 24... Qb7 {[%clk 0:02:19.1]} 25. Nxd6 {[%clk
0:01:25.6]} 25... Qd7 {[%clk 0:02:05.5]} 26. Nc4 {[%clk 0:01:22.2]} 26... Bd4
{[%clk 0:02:05.5]} 27. Rf3 {[%clk 0:01:14.4]} 27... Qxd5 {[%clk 0:02:04.4]} 28.
Rxa7 {[%clk 0:01:15]} 28... Rb7 {[%clk 0:01:57.6]} 29. Rxb7 {[%clk 0:01:09.8]}
29... Qxb7 {[%clk 0:01:58.5]} 30. h4 {[%clk 0:01:04.7]} 30... h5 {[%clk
0:01:54.6]} 31. Kh2 {[%clk 0:01:00]} 31... Rd8 {[%clk 0:01:53.8]} 32. Qe2 {[%clk
0:00:59.3]} 32... Qd5 {[%clk 0:01:52.3]} 33. b3 {[%clk 0:00:58.3]} 33... Kg7
{[%clk 0:01:44.8]} 34. Kh3 {[%clk 0:00:50]} 34... Re8 {[%clk 0:01:43.2]} 35. Qf1
{[%clk 0:00:47.6]} 35... Re4 {[%clk 0:01:33.8]} 36. Kh2 {[%clk 0:00:45.5]} 36...
Qe6 {[%clk 0:01:32.3]} 0-1